bitfinex-derivatives/quotes_BTCF0:USTF0_20210109
["timestamp","ask_amount","ask_price","bid_price","bid_amount"]
[1610223165386,3.42872608,40079.0,40078.0,0.09175]
[1610223165594,2.9551,40075.0,40010.0,2.40011926]
[1610223165787,3.04923,40075.0,40010.0,2.40011926]
[1610223165989,3.04923,40075.0,40011.0,2.40034546]
[1610223166187,3.04923,40075.0,40011.0,2.48583546]
[1610223166388,3.04923,40075.0,40012.0,2.39970127]
[1610223166589,0.13632608,40059.0,40056.0,0.13632608]
[1610223166988,0.13632608,40059.0,40011.0,2.47871968]
[1610223167388,0.13632608,40059.0,40011.0,0.08549]
[1610223167588,0.13632608,40059.0,40012.0,0.00021362]
[1610223168190,0.13632608,40059.0,39998.0,2.68695474]
[1610223168191,0.13632608,40059.0,40007.0,1.37425589]
[1610223168589,0.13632608,40026.0,40016.0,0.13632608]
[1610223168992,0.2936,40058.0,40016.0,0.13632608]
[1610223169189,0.2936,40058.0,40017.0,0.00021365]
[1610223169390,0.2936,40058.0,40016.0,0.22815608]
[1610223170591,0.13632608,40056.0,40053.0,0.13632608]
[1610223171392,0.2936,40058.0,40053.0,0.13632608]
[1610223171791,0.2936,40058.0,40053.0,0.23257608]
[1610223173493,2.9125,40112.0,40053.0,0.23257608]
[1610223174700,0.13632608,40092.0,40085.0,0.13632608]
[1610223175696,0.13632608,40092.0,40053.0,0.09625]
[1610223176696,0.13632608,40067.0,40053.0,0.09625]
[1610223176896,0.13632608,40067.0,39999.0,2.51012682]
[1610223177096,0.13632608,40067.0,40023.0,3.0494]
[1610223177696,3.5493,40087.0,40023.0,3.0494]
[1610223177898,3.4076,40112.0,40023.0,3.2431]
[1610223178699,0.13632608,40081.0,40078.0,0.13632608]
[1610223179801,0.13632608,40081.0,40047.0,3.1314]
[1610223180602,0.0827,40092.0,40070.0,0.13632608]
[1610223180803,0.0827,40092.0,40070.0,0.21716608]
[1610223181004,0.0827,40092.0,40070.0,0.08084]
[1610223182204,0.07656,40104.0,40070.0,0.08084]
[1610223182605,0.13632608,40092.0,40091.0,0.13632608]
[1610223183406,0.6,40110.0,40091.0,0.13632608]
[1610223183609,0.09993,40113.0,40091.0,0.24262608]
[1610223183806,1.0,40149.0,40091.0,0.24262608]
[1610223184006,0.2903,40129.0,40091.0,0.24262608]
[1610223184407,0.2903,40129.0,40091.0,0.1063]
[1610223184607,0.2903,40129.0,40118.0,0.13632608]
[1610223185009,0.00030517,40128.0,40118.0,0.13632608]
[1610223185408,0.2903,40129.0,40118.0,0.13632608]
[1610223186607,0.13632608,40119.0,40118.0,0.13632608]
[1610223188111,0.2903,40129.0,40118.0,0.13632608]
[1610223188715,0.2903,40129.0,40128.0,0.13632608]
[1610223189112,0.2903,40129.0,40128.0,0.25013608]
[1610223189713,0.2903,40129.0,40128.0,0.11381]
[1610223190113,0.2903,40129.0,40116.0,0.10959]
[1610223190714,0.42662608,40129.0,40128.0,0.13632608]
[1610223190913,0.42662608,40129.0,40116.0,0.10959]
[1610223192516,0.2903,40129.0,40116.0,0.10959]
[1610223192718,0.2903,40129.0,40128.0,0.13632608]
[1610223194718,0.42662608,40129.0,40128.0,0.13632608]
[1610223195119,0.10622,40147.0,40128.0,0.13632608]
[1610223196622,0.13632608,40139.0,40138.0,0.13632608]
[1610223197021,0.10622,40147.0,40138.0,0.13632608]
[1610223197222,0.08063,40156.0,40138.0,0.13632608]
[1610223197621,0.03080736,40155.0,40138.0,0.13632608]
[1610223198020,0.074,40154.0,40138.0,0.13632608]
[1610223198421,0.08063,40156.0,40138.0,0.13632608]
[1610223198621,0.03080566,40153.0,40144.0,0.13632608]
[1610223198820,0.00030501,40155.0,40144.0,0.13632608]
[1610223199223,0.00030501,40152.0,40144.0,0.13632608]
[1610223199421,0.00030501,40154.0,40144.0,0.13632608]
[1610223199622,0.0305005,40155.0,40144.0,0.13632608]
[1610223200122,0.08063,40156.0,40144.0,0.13632608]
[1610223200522,0.2933,40180.0,40144.0,0.13632608]
[1610223200724,0.13632608,40163.0,40162.0,0.13632608]
[1610223201123,0.11282,40173.0,40162.0,0.13632608]
[1610223201523,0.0307956,40172.0,40162.0,0.13632608]
[1610223201922,0.0738,40171.0,40162.0,0.13632608]
[1610223202122,0.0307956,40172.0,40162.0,0.13632608]
[1610223202323,0.11282,40173.0,40162.0,0.13632608]
[1610223202724,0.11282,40173.0,40172.0,0.13632608]
[1610223203527,0.13632608,40175.0,40172.0,0.13632608]
[1610223205528,0.2762,40202.0,40172.0,0.13632608]
[1610223205729,1.0,40212.0,40172.0,0.13632608]
[1610223205929,0.00030479,40201.0,40182.0,4.1153]
[1610223206329,0.00030476,40211.0,40182.0,4.1153]
[1610223206528,1.0,40212.0,40182.0,4.22817]
[1610223206729,0.99,40212.0,40182.0,4.22817]
[1610223206930,0.13632608,40227.0,40182.0,0.11287]
[1610223207329,0.07540448,40226.0,40182.0,0.11287]
[1610223207530,0.00030448,40226.0,40182.0,0.11287]
[1610223208731,0.00030448,40226.0,40185.0,0.13632608]
[1610223208930,1.0,40209.0,40185.0,0.13632608]
[1610223209534,0.00030457,40208.0,40185.0,0.13632608]
[1610223209732,0.09847457,40208.0,40185.0,0.13632608]
[1610223210234,0.09817,40208.0,40185.0,0.13632608]
[1610223210632,0.13632608,40206.0,40205.0,0.13632608]
[1610223211032,0.13632608,40206.0,40182.0,0.11287]
[1610223211232,0.24606608,40206.0,40182.0,0.11287]
[1610223211633,0.00030463,40205.0,40167.0,0.09162]
[1610223211832,0.03077312,40205.0,40161.0,3.1333]
[1610223212231,0.00030463,40205.0,40161.0,3.1333]
[1610223212432,0.03077338,40204.0,40161.0,3.1333]
[1610223212633,0.00030469,40204.0,40184.0,0.13632608]
[1610223213036,0.03077622,40205.0,40184.0,0.13632608]
[1610223213236,0.00030471,40203.0,40184.0,0.13632608]
[1610223213435,0.00030469,40204.0,40184.0,0.13632608]
[1610223213837,0.00030467,40205.0,40184.0,0.13632608]
[1610223214037,0.10974,40206.0,40184.0,0.13632608]
[1610223214237,0.10974,40206.0,40184.0,4.27002608]
[1610223214639,0.13632608,40210.0,40205.0,0.13632608]
[1610223214837,0.13632608,40210.0,40205.0,0.23244608]
[1610223215838,0.0741,40209.0,40205.0,0.23244608]
[1610223216236,0.13632608,40210.0,40190.0,0.11158]
[1610223216636,0.09705,40215.0,40190.0,0.11158]
[1610223216637,0.13632608,40191.0,40190.0,0.11158]
[1610223217438,0.13632608,40191.0,40189.0,0.13632608]
[1610223218237,0.13632608,40191.0,40181.0,0.08285]
[1610223218438,0.13632608,40191.0,40175.0,3.6651]
[1610223218639,0.13632608,40185.0,40184.0,0.13632608]
[1610223218840,0.07915,40206.0,40184.0,0.13632608]
[1610223219042,0.07915,40206.0,40184.0,0.24201608]
[1610223219240,0.07915,40206.0,40189.0,3.5122]
[1610223219440,0.09705,40215.0,40189.0,3.5122]
[1610223219640,1.0,40225.0,40189.0,3.5122]
[1610223220141,0.0916644,40224.0,40189.0,3.5122]
[1610223220741,0.0916644,40224.0,40218.0,0.13632608]
[1610223221141,0.0916644,40224.0,40204.0,0.11826]
[1610223221541,0.03075876,40226.0,40204.0,0.11826]
[1610223221741,0.03076083,40223.0,40204.0,0.11826]
[1610223221941,0.03076268,40225.0,40184.0,0.10569]
[1610223222343,0.03076344,40226.0,40184.0,0.10569]
[1610223222545,0.03076378,40224.0,40184.0,0.10569]
[1610223222744,0.13632608,40185.0,40184.0,0.10569]
[1610223222943,0.13632608,40185.0,40179.0,3.0518]
[1610223223745,0.1143,40200.0,40179.0,3.0518]
[1610223223946,0.06092748,40230.0,40179.0,3.0518]
[1610223224147,0.2756,40231.0,40179.0,3.0518]
[1610223224346,0.03076723,40226.0,40179.0,3.0518]
[1610223224545,0.1408226,40226.0,40179.0,3.0518]
[1610223224746,0.11036,40226.0,40201.0,0.13632608]
[1610223224946,0.03076349,40225.0,40201.0,0.13632608]
[1610223225348,0.03076349,40225.0,40185.0,0.11122]
[1610223226749,0.13632608,40186.0,40185.0,0.11122]
[1610223227351,0.07729,40201.0,40185.0,0.11122]
[1610223227951,0.42400059,40216.0,40185.0,0.11122]
[1610223228151,0.06092021,40216.0,40185.0,0.11122]
[1610223228352,0.03076178,40215.0,40185.0,0.11122]
[1610223228553,1.0,40217.0,40185.0,0.11122]
[1610223228752,1.0,40217.0,40207.0,0.13632608]
[1610223228953,0.11036,40226.0,40207.0,0.13632608]
[1610223229353,0.0307575,40225.0,40207.0,0.13632608]
[1610223229952,0.0307575,40225.0,40207.0,0.12632608]
[1610223230154,0.0307575,40225.0,40197.0,3.0337]
[1610223230854,0.13632608,40207.0,40204.0,0.13632608]
[1610223231254,0.13632608,40207.0,40197.0,3.0337]
[1610223231255,0.13632608,40207.0,40197.0,0.0771]
[1610223231455,0.13632608,40207.0,40185.0,0.11122]
[1610223231654,0.13632608,40207.0,40181.0,3.9488]
[1610223232856,0.09397,40213.0,40194.0,0.13632608]
[1610223233455,0.03076172,40212.0,40182.0,0.09243]
[1610223234860,0.03076172,40212.0,40195.0,0.13632608]
[1610223235661,0.03076172,40212.0,40195.0,0.21339608]
[1610223235862,0.09397,40213.0,40195.0,0.21339608]
[1610223236463,0.11036,40226.0,40195.0,0.21339608]
[1610223236664,0.1522827,40227.0,40195.0,0.21339608]
[1610223236866,0.13632608,40212.0,40211.0,0.13632608]
[1610223237264,0.13632608,40212.0,40195.0,0.07707]
[1610223237465,0.13632608,40212.0,40182.0,0.09243]
[1610223238066,0.00030456,40211.0,40181.0,3.9488]
[1610223238266,0.03076052,40211.0,40181.0,3.9488]
[1610223238866,0.03076052,40211.0,40187.0,0.13632608]
[1610223239268,0.03076382,40212.0,40187.0,0.13632608]
[1610223239468,0.03076422,40210.0,40187.0,0.13632608]
[1610223239669,0.03076385,40211.0,40187.0,0.13632608]
[1610223239970,0.03076342,40212.0,40187.0,0.13632608]
[1610223240772,0.07392,40213.0,40200.0,0.13632608]
[1610223241571,0.03076138,40212.0,40200.0,0.13632608]
[1610223242372,0.03076138,40212.0,40200.0,0.12632608]
[1610223242571,0.00030457,40212.0,40200.0,0.12632608]
[1610223242772,0.07392,40213.0,40200.0,0.12632608]
[1610223242773,0.13632608,40201.0,40200.0,0.12632608]
[1610223244871,0.13632608,40201.0,40182.0,0.13632608]
[1610223245875,0.21046608,40201.0,40181.0,0.10047]
[1610223246073,0.21046608,40201.0,40172.0,0.0764]
[1610223246272,0.21046608,40201.0,40167.0,3.4915]
[1610223246676,0.21046608,40201.0,40168.0,0.00021469]
[1610223246876,0.07414,40201.0,40170.0,0.13632608]
[1610223247477,0.03076796,40200.0,40170.0,0.13632608]
[1610223248876,0.13632608,40171.0,40170.0,0.13632608]
[1610223249276,0.13632608,40171.0,40170.0,0.1365408]
[1610223250776,1.2816,40200.0,40170.0,0.1365408]
[1610223250979,0.2816,40200.0,40170.0,0.1365408]
[1610223251178,0.00030463,40199.0,40171.0,0.00021472]
[1610223252880,0.13632608,40172.0,40171.0,0.00021472]
[1610223253280,0.2816,40200.0,40171.0,0.00021472]
[1610223254887,0.2816,40200.0,40189.0,0.13632608]
[1610223255488,0.2816,40200.0,40190.0,0.00021468]
[1610223256890,0.13632608,40192.0,40190.0,0.00021468]
[1610223257491,0.2816,40200.0,40190.0,0.00021468]
[1610223258290,0.2816,40200.0,40185.0,0.00962863]
[1610223258489,0.2816,40200.0,40191.0,0.00021468]
[1610223258691,0.0747,40199.0,40191.0,0.00021468]
[1610223258891,0.2816,40200.0,40193.0,0.13632608]
[1610223259292,0.2816,40200.0,40194.0,0.00021468]
[1610223259791,0.0747,40199.0,40194.0,0.00021468]
[1610223259991,0.2816,40200.0,40194.0,0.00021468]
[1610223260893,0.13632608,40195.0,40194.0,0.00021468]
[1610223262197,0.20982608,40195.0,40194.0,0.00021468]
[1610223262393,0.13632608,40195.0,40194.0,0.00021468]
[1610223262796,0.13632608,40195.0,40184.0,0.00962958]
[1610223262997,0.13632608,40195.0,40194.0,0.00021468]
[1610223263398,0.21012608,40195.0,40185.0,0.0002147]
[1610223263599,0.13632608,40195.0,40194.0,0.0002147]
[1610223263800,0.13632608,40195.0,40186.0,0.0002147]
[1610223264100,0.13632608,40195.0,40194.0,0.0002147]
[1610223264297,0.13632608,40195.0,40187.0,0.0002147]
[1610223264498,0.13632608,40195.0,40189.0,2.825]
[1610223264898,0.2816,40200.0,40192.0,0.13632608]
[1610223265400,0.2816,40200.0,40193.0,0.0002147]
[1610223266899,0.13632608,40194.0,40193.0,0.0002147]
[1610223269201,0.13632608,40194.0,40193.0,0.0096286]
[1610223272506,0.2913,40212.0,40193.0,0.0096286]
[1610223273006,0.2913,40212.0,40206.0,0.13632608]
[1610223273407,0.2892,40231.0,40207.0,0.00021464]
[1610223274110,0.00030452,40230.0,40207.0,0.00021464]
[1610223274307,0.07403452,40230.0,40207.0,0.00021464]
[1610223274710,0.00030452,40229.0,40207.0,0.00021464]
[1610223274909,0.13632608,40208.0,40207.0,0.00021464]
[1610223276212,0.07373,40230.0,40207.0,0.00021464]
[1610223276612,0.00030451,40229.0,40207.0,0.00021464]
[1610223277012,0.07373,40230.0,40225.0,0.13632608]
[1610223278213,0.07373,40230.0,40220.0,2.7879]
[1610223278814,0.07373,40230.0,40221.0,0.00021461]
[1610223279017,0.07373,40230.0,40223.0,0.13632608]
[1610223279614,0.2761,40239.0,40223.0,0.13632608]
[1610223280015,0.00030449,40238.0,40223.0,0.13632608]
[1610223280215,0.08103449,40238.0,40223.0,0.13632608]
[1610223280816,0.00030447,40237.0,40223.0,0.13632608]
[1610223281015,0.13632608,40225.0,40223.0,0.13632608]
[1610223281617,0.13632608,40225.0,40224.0,0.00021457]
[1610223281816,0.13632608,40225.0,40223.0,0.13632608]
[1610223282215,0.13632608,40225.0,40202.0,0.10183]
[1610223282415,0.13632608,40225.0,40208.0,3.0831]
[1610223282818,0.13632608,40225.0,40209.0,0.00021457]
[1610223283016,0.13632608,40210.0,40209.0,0.13654065]
[1610223284417,0.11596,40226.0,40209.0,0.13654065]
[1610223284820,0.11596,40226.0,40210.0,0.00021457]
[1610223285020,0.11596,40226.0,40220.0,0.13632608]
[1610223285621,0.11596,40226.0,40221.0,0.00021457]
[1610223286220,0.08073,40238.0,40221.0,0.00021457]
[1610223286619,0.00030445,40237.0,40221.0,0.00021457]
[1610223286922,0.09055445,40237.0,40221.0,0.00021457]
[1610223287122,0.13632608,40222.0,40221.0,0.00021457]
[1610223287522,0.22076608,40222.0,40221.0,0.00021457]
[1610223292629,0.22076608,40222.0,40219.0,0.00021452]
[1610223292929,0.22076608,40222.0,40221.0,0.00021452]
[1610223293129,0.22076608,40222.0,40220.0,0.00021452]
[1610223293529,0.22076608,40222.0,40219.0,0.00021452]
[1610223293730,0.22076608,40222.0,40221.0,0.00021452]
[1610223293930,0.22076608,40222.0,40220.0,0.00021452]
[1610223294330,0.22076608,40222.0,40215.0,0.00021452]
[1610223294532,0.22076608,40222.0,40221.0,0.00021452]
[1610223294730,0.22076608,40222.0,40216.0,0.00021452]
[1610223295130,0.13632608,40217.0,40215.0,0.00021452]
[1610223295330,0.13632608,40217.0,40214.0,0.13632608]
[1610223295531,0.13632608,40217.0,40216.0,0.00021452]
[1610223295831,0.13632608,40217.0,40215.0,0.00021452]
[1610223296032,0.13632608,40217.0,40216.0,0.00021452]
[1610223296431,0.13632608,40217.0,40215.0,0.00021452]
[1610223296631,0.13632608,40217.0,40216.0,0.00021452]
[1610223297232,0.13632608,40217.0,40215.0,0.00021452]
[1610223297433,0.13632608,40217.0,40216.0,0.00021452]
[1610223298034,0.13632608,40217.0,40215.0,0.00021452]
[1610223298235,0.13632608,40217.0,40216.0,0.00021452]
[1610223298734,0.13632608,40217.0,40215.0,0.00021452]
[1610223298934,0.13632608,40217.0,40216.0,0.00021452]
[1610223299135,0.08444,40222.0,40216.0,0.00021452]
[1610223299335,0.13632608,40224.0,40215.0,0.00021452]
[1610223299537,0.13632608,40224.0,40220.0,3.433]
[1610223299936,0.09025,40237.0,40220.0,3.433]
[1610223300136,0.2761,40239.0,40221.0,0.00022096]
[1610223300336,0.2761,40239.0,40221.0,0.00022095]
[1610223301138,0.13632608,40230.0,40225.0,0.13632608]
[1610223301338,0.21890608,40230.0,40225.0,0.13632608]
[1610223301539,0.21890608,40230.0,40229.0,3.8194]
[1610223301940,0.21890608,40230.0,40229.0,3.81962095]
[1610223309144,0.21890608,40230.0,40229.0,3.95594703]
[1610223312348,0.08258,40230.0,40229.0,3.95594703]
[1610223312748,0.10312,40236.0,40229.0,3.95594703]
[1610223313148,0.13632608,40235.0,40229.0,3.95594703]
[1610223313347,0.13632608,40235.0,40230.0,0.00022066]
[1610223315253,0.13632608,40235.0,40234.0,0.13632608]
[1610223315653,0.13632608,40235.0,40234.0,0.13654674]
[1610223317757,0.13632608,40235.0,40234.0,0.00022066]
[1610223318362,0.13632608,40235.0,40225.0,0.00022066]
[1610223318560,0.13632608,40235.0,40234.0,0.00022066]
[1610223318763,0.13632608,40235.0,40226.0,0.00022066]
[1610223319162,0.2761,40239.0,40234.0,0.00022066]
[1610223319362,0.2761,40239.0,40227.0,0.00022066]
[1610223319562,0.2761,40239.0,40235.0,0.00022066]
[1610223319762,0.2761,40239.0,40228.0,0.00022066]
[1610223320164,0.2761,40239.0,40225.0,0.00022068]
[1610223320365,0.2761,40239.0,40229.0,0.00022068]
[1610223320565,0.2761,40239.0,40226.0,0.00022068]
[1610223320968,0.2761,40239.0,40225.0,0.00022068]
[1610223321168,0.2761,40239.0,40227.0,0.00022068]
[1610223321369,0.2761,40239.0,40226.0,0.00022068]
[1610223321672,0.2761,40239.0,40225.0,0.00022068]
[1610223321870,0.2698811,40239.0,40225.0,0.00022068]
[1610223322070,0.2698811,40239.0,40227.0,0.00022068]
[1610223322269,0.2698811,40239.0,40226.0,0.00022068]
[1610223322471,0.2698811,40239.0,40228.0,0.00022068]
[1610223322871,0.2698811,40239.0,40227.0,0.00022068]
[1610223323072,0.2698811,40239.0,40229.0,0.00022068]
[1610223323272,0.13632608,40230.0,40228.0,0.00022068]
[1610223323471,0.13632608,40230.0,40224.0,3.67]
[1610223323871,0.13632608,40230.0,40225.0,0.00022069]
[1610223325772,0.2698811,40239.0,40225.0,0.00022069]
[1610223327175,0.13632608,40236.0,40228.0,0.13632608]
[1610223327576,0.13632608,40236.0,40229.0,0.00022067]
[1610223328579,0.13632608,40236.0,40230.0,0.00022066]
[1610223328780,0.13632608,40236.0,40229.0,0.01169289]
[1610223329181,0.13632608,40236.0,40232.0,0.4514]
[1610223329581,0.13632608,40236.0,40233.0,0.00022066]
[1610223330384,0.13632608,40236.0,40231.0,3.314]
[1610223330783,0.13632608,40236.0,40234.0,0.00022066]
[1610223330984,0.13632608,40236.0,40232.0,0.00022066]
[1610223331384,0.13632608,40236.0,40235.0,0.13632608]
[1610223331784,0.13632608,40236.0,40235.0,0.13654674]
[1610223333187,0.13632608,40236.0,40235.0,3.70134674]
[1610223337092,0.13632608,40236.0,40235.0,0.13654674]
[1610223339195,0.2698811,40239.0,40235.0,0.13654674]
[1610223339795,0.2698811,40239.0,40236.0,0.00022066]
[1610223340196,0.2698811,40239.0,40237.0,3.5425]
[1610223340596,0.2698811,40239.0,40238.0,0.00022066]
[1610223344703,0.09362,40240.0,40238.0,0.00022066]
[1610223344904,0.13632608,40242.0,40238.0,0.00022066]
[1610223345505,0.13632608,40242.0,40240.0,0.13632608]
[1610223345908,0.13632608,40242.0,40241.0,0.00022061]
[1610223348212,0.2815,40275.0,40241.0,0.00022061]
[1610223348415,0.2815,40275.0,40246.0,3.3099]
[1610223348610,0.00030421,40274.0,40246.0,3.3099]
[1610223348812,0.09341421,40274.0,40246.0,3.3099]
[1610223349013,0.09341421,40274.0,40247.0,0.00022058]
[1610223349213,0.00030419,40273.0,40247.0,0.00022058]
[1610223349413,0.13632608,40264.0,40257.0,0.13632608]
[1610223349614,0.23055608,40264.0,40257.0,0.13632608]
[1610223349815,0.23055608,40264.0,40258.0,0.00022056]
[1610223350214,0.23055608,40264.0,40261.0,3.0766]
[1610223350415,0.23055608,40264.0,40258.0,0.00022056]
[1610223350614,0.23055608,40264.0,40263.0,3.2878]
[1610223351016,0.23055608,40264.0,40263.0,3.28802053]
[1610223352817,0.09423,40264.0,40263.0,3.28802053]
[1610223354118,0.09423,40264.0,40263.0,0.00022053]
[1610223354720,0.13632608,40269.0,40263.0,0.00022053]
[1610223355321,0.13632608,40269.0,40247.0,2.9393]
[1610223355521,0.13632608,40248.0,40244.0,0.13632608]
[1610223356121,0.13632608,40248.0,40245.0,0.00022049]
[1610223356521,0.13632608,40248.0,40234.0,0.00022049]
[1610223357423,0.07306,40261.0,40241.0,0.13632608]
[1610223358024,0.07306,40261.0,40242.0,3.17882051]
[1610223358425,0.07306,40261.0,40243.0,0.00022051]
[1610223359528,0.13632608,40247.0,40246.0,0.13632608]
[1610223360129,0.13632608,40247.0,40246.0,0.13654656]
[1610223360326,0.07306,40261.0,40246.0,0.13654656]
[1610223360727,0.0736,40260.0,40246.0,0.13632608]
[1610223360926,0.102,40262.0,40247.0,0.00022074]
[1610223361127,0.102,40262.0,40254.0,3.5481]
[1610223361528,0.102,40262.0,40258.0,0.13632608]
[1610223361927,0.102,40262.0,40259.0,0.0002207]
[1610223363028,0.13632608,40267.0,40259.0,0.0002207]
[1610223365428,0.13632608,40260.0,40259.0,0.0002207]
[1610223366228,0.21172608,40260.0,40259.0,0.0002207]
[1610223367229,0.13632608,40260.0,40259.0,0.0002207]
[1610223367630,0.09311,40274.0,40259.0,0.0002207]
[1610223367830,0.2816,40306.0,40271.0,3.1679]
[1610223368030,0.2742,40288.0,40271.0,3.1679]
[1610223368229,0.39046,40288.0,40271.0,3.1679]
[1610223368430,0.39046,40288.0,40272.0,0.00022069]
[1610223369432,0.39046,40288.0,40273.0,0.13632608]
[1610223369831,0.39046,40288.0,40274.0,0.00022064]
[1610223370231,0.11626,40288.0,40274.0,0.00022064]
[1610223371030,0.11626,40288.0,40286.0,3.8064]
[1610223371634,0.11626,40288.0,40287.0,0.13632608]
[1610223371832,0.13632608,40299.0,40287.0,0.13654666]
[1610223372132,0.13632608,40299.0,40288.0,0.00022058]
[1610223373531,0.13632608,40299.0,40298.0,0.13632608]
[1610223373932,0.13632608,40299.0,40298.0,3.25942608]
[1610223376737,0.13632608,40299.0,40298.0,3.1231]
[1610223377138,0.13632608,40299.0,40285.0,0.10312]
[1610223377538,0.13632608,40286.0,40285.0,0.10312]
[1610223377739,0.13632608,40286.0,40272.0,0.07798]
[1610223377940,0.13632608,40286.0,40267.0,2.8816]
[1610223379544,0.13632608,40268.0,40267.0,2.8816]
[1610223381743,0.13632608,40268.0,40267.0,3.01792608]
[1610223385948,0.13632608,40268.0,40267.0,3.01814667]
[1610223386348,0.09463,40278.0,40267.0,3.01814667]
[1610223386548,0.09463,40278.0,40267.0,0.13654667]
[1610223386747,0.11711,40287.0,40268.0,0.00022056]
[1610223386948,0.07311,40297.0,40268.0,0.00022056]
[1610223387150,1.2786,40305.0,40275.0,4.1164]
[1610223387749,1.2786,40305.0,40282.0,0.13632608]
[1610223387948,1.2786,40305.0,40284.0,0.5225]
[1610223388748,0.00030383,40304.0,40284.0,0.5225]
[1610223389752,0.13632608,40285.0,40284.0,0.5225]
[1610223392655,0.13632608,40285.0,40284.0,0.52272053]
[1610223393655,0.13632608,40285.0,40284.0,0.65904661]
[1610223394859,0.13632608,40285.0,40284.0,0.13654661]
[1610223397260,0.20962608,40285.0,40284.0,0.13654661]
[1610223397862,0.13632608,40285.0,40284.0,0.13654661]
[1610223399262,0.13632608,40285.0,40284.0,0.00022053]
[1610223399865,0.20952608,40285.0,40273.0,0.13632608]
[1610223400067,0.20952608,40285.0,40284.0,0.00021888]
[1610223400264,0.20952608,40285.0,40274.0,0.00021888]
[1610223400465,0.20952608,40285.0,40274.0,0.01120063]
[1610223400967,0.13632608,40285.0,40274.0,0.01120063]
[1610223401768,0.08701,40288.0,40274.0,0.01120063]
[1610223401969,1.0,40301.0,40274.0,0.01120063]
[1610223403070,1.0,40304.0,40274.0,0.01120063]
[1610223403271,0.0734,40303.0,40276.0,3.1944]
[1610223403871,0.0734,40303.0,40279.0,0.13632608]
[1610223404273,0.0734,40303.0,40280.0,0.01120077]
[1610223405675,1.0,40304.0,40280.0,0.01120077]
[1610223405874,0.13632608,40281.0,40280.0,0.01120077]
[1610223408281,0.10339,40289.0,40280.0,0.01120077]
[1610223409885,0.10339,40289.0,40288.0,0.72382608]
[1610223410286,0.10339,40289.0,40288.0,0.72404493]
[1610223410684,0.10339,40289.0,40288.0,0.73502435]
[1610223411586,1.0,40319.0,40288.0,0.73502435]
[1610223411787,1.0,40319.0,40306.0,0.13632608]
[1610223412185,1.0,40319.0,40307.0,0.00021881]
[1610223412986,0.0744,40318.0,40307.0,0.00021881]
[1610223413186,0.08073,40318.0,40307.0,0.00021881]
[1610223413887,0.08073,40318.0,40314.0,0.13632608]
[1610223414087,0.0735,40317.0,40314.0,0.13632608]
[1610223414486,0.0735,40317.0,40315.0,0.00021876]
[1610223414888,0.08073,40318.0,40315.0,0.00021876]
[1610223415888,0.13632608,40316.0,40315.0,0.00021876]
[1610223416288,0.13632608,40316.0,40300.0,0.00021876]
[1610223416487,0.13632608,40316.0,40315.0,0.00021876]
[1610223416889,0.20972608,40316.0,40301.0,0.00021876]
[1610223417088,0.13632608,40316.0,40315.0,0.00021876]
[1610223417287,0.13632608,40316.0,40302.0,0.00021878]
[1610223417489,0.13632608,40316.0,40299.0,3.2726]
[1610223417689,0.13632608,40316.0,40272.0,2.55275888]
[1610223417891,3.5555,40314.0,40300.0,0.00021879]
[1610223418088,3.5555,40314.0,40287.0,0.13632608]
[1610223418488,3.5555,40314.0,40301.0,0.00021879]
[1610223418690,3.5555,40314.0,40288.0,0.00021881]
[1610223418889,3.5555,40314.0,40287.0,0.13632608]
[1610223418890,3.5555,40314.0,40302.0,0.00021881]
[1610223419089,1.0,40304.0,40289.0,0.00021881]
[1610223419290,0.0754,40303.0,40289.0,0.00021881]
[1610223419490,0.0754,40303.0,40288.0,0.00021881]
[1610223419690,0.0754,40303.0,40290.0,0.00021881]
[1610223419889,0.13632608,40291.0,40289.0,0.00021881]
[1610223420089,0.21848608,40291.0,40289.0,0.00021881]
[1610223420291,0.21848608,40291.0,40288.0,0.00021881]
[1610223420492,0.21848608,40291.0,40290.0,0.00022156]
[1610223420694,0.21848608,40291.0,40289.0,0.00022156]
[1610223421091,0.21848608,40291.0,40289.0,3.615]
[1610223421291,0.21848608,40291.0,40290.0,0.00022156]
[1610223421491,0.29308608,40291.0,40290.0,0.00022156]
[1610223421892,0.21848608,40291.0,40290.0,0.13654764]
[1610223422494,0.08216,40291.0,40290.0,0.13654764]
[1610223422696,0.09746,40304.0,40290.0,0.13654764]
[1610223422894,0.09746,40304.0,40290.0,0.14842504]
[1610223423097,0.09746,40304.0,40291.0,0.01209816]
[1610223423294,0.09746,40304.0,40299.0,3.6762]
[1610223423695,0.09746,40304.0,40300.0,0.00022153]
[1610223423894,0.09746,40304.0,40303.0,0.13632608]
[1610223424394,0.13632608,40306.0,40303.0,0.13654758]
[1610223424797,0.13632608,40306.0,40304.0,0.0002215]
[1610223427196,0.0734,40305.0,40304.0,0.0002215]
[1610223427397,0.13632608,40306.0,40304.0,0.0002215]
[1610223428597,0.0753,40305.0,40304.0,0.0002215]
[1610223429199,0.13632608,40306.0,40304.0,0.0002215]
[1610223430002,0.13632608,40306.0,40292.0,0.0120955]
[1610223430202,0.13632608,40306.0,40305.0,0.0002215]
[1610223430603,0.13632608,40306.0,40293.0,0.0002215]
[1610223430804,0.13632608,40306.0,40305.0,0.0002215]
[1610223431001,0.13632608,40306.0,40294.0,0.0002215]
[1610223431402,0.13632608,40306.0,40305.0,0.0002215]
[1610223431602,0.13632608,40306.0,40297.0,3.6236]
[1610223431802,0.09398,40307.0,40305.0,0.0002215]
[1610223432002,0.09398,40307.0,40306.0,3.598]
[1610223432202,0.09398,40307.0,40306.0,3.73432608]
[1610223432403,0.13632608,40308.0,40306.0,3.73454758]
[1610223432804,0.13632608,40308.0,40307.0,0.00022148]
[1610223433206,0.21102608,40308.0,40307.0,0.00022148]
[1610223433408,0.13632608,40308.0,40300.0,0.01209411]
[1610223433605,0.0753,40307.0,40300.0,0.01187263]
[1610223434005,0.0753,40307.0,40300.0,0.01209411]
[1610223434206,0.0753,40307.0,40302.0,0.13632608]
[1610223434606,0.10683,40308.0,40302.0,0.13632608]
[1610223434805,0.10683,40308.0,40303.0,0.00022148]
[1610223435606,0.0737,40307.0,40303.0,0.00022148]
[1610223436405,0.10683,40308.0,40303.0,0.00022148]
[1610223437406,0.0749,40307.0,40303.0,0.00022148]
[1610223437805,0.10683,40308.0,40303.0,0.00022148]
[1610223438207,0.10683,40308.0,40307.0,0.65692608]
[1610223438807,0.13632608,40309.0,40307.0,0.65692608]
[1610223439006,0.13632608,40309.0,40307.0,0.66902006]
[1610223439207,0.13632608,40309.0,40308.0,0.01209398]
[1610223440408,0.21092608,40309.0,40308.0,0.01209398]
[1610223440808,0.13632608,40309.0,40308.0,0.01209398]